Cogmind - Beta 15 @@@ ROGUE MODE // 2025.07.06 @ 19:28:38 Player: Skysub Result: Self-destructed Performance ------------- Evolutions (4) 2000 Regions Visited (4) 800 Robots Destroyed (47) 235 Value Destroyed (1278) 1278 Prototype IDs (18) 360 Alien Tech Used (0) 0 Bonus (-401) -401 TOTAL SCORE: 4272 Bonus ------- Follower Combat Kills 70 Registered with UFD 300 Met Optimus in HQ 500 Friendly Fire -1271 Cogmind --------- Core Integrity 669/850 Matter 148/300 Energy 150/150 System Corruption 12% Temperature Warning (333) Movement Walking (115) Location -6/Factory Parts ------- > --- POWER (2) -------- Light Angular Momentum Engine > --- PROPULSION (4) --- Carbon-fiber Leg Overtuned Titanium Leg Flexi-carbon Leg Armored Leg > --- UTILITY (7) ------ Advanced Heat Sink Improved Signal Interpreter Hardened Heavy Armor Plating > --- WEAPON (2) ------- Overtuned Quantum Rifle > --- INVENTORY (5) ---- Scrapoid Pod Peak State ------------ > --- POWER ------------ Light Angular Momentum Engine Light Fission Core > --- PROPULSION ------- Overtuned Titanium Leg Overtuned Titanium Leg Flexi-carbon Leg Overtuned Flexi-carbon Leg > --- UTILITY ---------- Scrap Suit Light Humpback Experimental Sensor Array Target Analyzer Improved Medium Armor Plating > --- WEAPON ----------- Hypervelocity Gauss Rifle Overtuned Coil Gun > --- INVENTORY -------- Light Angular Momentum Engine Flexi-carbon Leg Armored Leg Compact Wheel Advanced Heat Sink Structural Scanner IFF Parser Matter Filter ECM Suite Hardened Heavy Armor Plating Layered Light Armor Plating Layered Light Armor Plating Tower Shield System Guard Scrapoid Pod Overtuned Quantum Rifle Overtuned Coil Gun Heavy Missile Launcher Hammer DRS Beacon [Rating: 75] Favorites ----------- Power Light Ion Engine Engine Light Ion Engine Power Core Light Fission Core Propulsion Compact Wheel Treads Light Treads Leg Overtuned Titanium Leg Wheel Compact Wheel Utility Large Storage Unit Device V3-11A's Pendant Storage Large Storage Unit Processor Improved Signal Interpreter Hackware Hacking Suite Protection Light Armor Plating Weapon Mining Claw Energy Gun Riot Gun Energy Cannon Subdweller Beam Cannon Ballistic Gun Autogun Impact Weapon Hammer Slashing Weapon Mining Claw Build | -11 -10 -10 -9 -6 ------- Run | Yrd Mat Sub Scr Fac Slots Evolved 8 | . . . . 8 Power 1 | . . . . 1 Propulsion 2 | . . . . 2 Utility 5 | . . . . 5 Weapon . | . . . . . Parts Attached 54 | 7 7 12 6 22 Power 5 | 1 . 1 . 3 Engine 4 | 1 . 1 . 2 Core 1 | . . . . 1 Reactor . | . . . . . Propulsion 15 | 2 1 4 1 7 Treads 3 | 2 1 . . . Leg 7 | . . . . 7 Wheel 5 | . . 4 1 . Hover . | . . . . . Flight . | . . . . . Utility 18 | 2 3 2 1 10 Device 6 | 1 . 2 . 3 Storage 3 | 1 1 . 1 . Processor 3 | . . . . 3 Hackware 1 | . . . . 1 Protection 5 | . 2 . . 3 Artifact . | . . . . . Weapon 16 | 2 3 5 4 2 Energy Gun 5 | 1 . 2 1 1 Energy Cannon 1 | . . . 1 . Ballistic Gun 8 | 1 3 2 1 1 Ballistic Cannon . | . . . . . Launcher . | . . . . . Special Weapon . | . . . . . Impact Weapon 1 | . . . 1 . Slashing Weapon 1 | . . 1 . . Piercing Weapon . | . . . . . Special Melee Weapon . | . . . . . Unidentified Prototypes 1 | . . 1 . . Parts Lost 20 | . 1 8 . 11 Power 3 | . . 1 . 2 Propulsion 7 | . 1 3 . 3 Utility 5 | . . 1 . 4 Weapon 5 | . . 3 . 2 Highest Loss Streak 9 | . 1 4 . 9 To Critical Strikes . | . . . . . Average Backups 10 | 2 9 12 6 16 Power . | . 1 . . . Propulsion 1 | 1 2 1 1 2 Utility 4 | . 2 5 3 9 Weapon 3 | . 4 4 1 3 Tool/Special . | . . . . . Unused Backups 28 | . . 2 15 11 Power 1 | . . . 1 . Propulsion 3 | . . . 3 . Utility 14 | . . 1 5 8 Weapon 8 | . . 1 5 2 Tool/Special 2 | . . . 1 1 Average Slot Usage (%) 82 | . 99 91 70 79 Engine 12 | . 14 13 14 6 Treads 5 | . 27 1 . . Leg 3 | . . . . 24 Wheel 16 | . . 22 25 . Device 5 | . 1 11 1 12 Storage 12 | . 14 14 13 5 Protection 3 | . 12 2 . 6 Energy Gun 2 | . 1 9 . . Ballistic Gun 8 | . 26 6 . 12 Slashing Weapon 6 | . . 8 11 . Peak Build Rating 75 | 9 10 17 22 75 Average Rating 18 | 5 9 13 8 67 On Entrance 10 | . 9 10 13 22 Naked Turns . | . . . . . Heaviest Build 82 | 13 34 34 51 82 Greatest Support 81 | 40 40 40 32 81 Greatest Overweight (x) 2 | . . 2 1 1 Average Overweight (x) . | . . . . . Largest Inventory Capacity 25 | 8 15 15 25 25 Average Capacity 16 | 7 14 15 16 24 Most Carried 25 | 4 12 15 24 25 Average Carried 11 | 2 9 13 8 20 Final Capacity 25 | 8 15 15 25 5 Final Carried 24 | 4 12 15 24 2 Class Distribution -------------------- 86% | Mutant 13% | Scrapper Dominant Class ---------------- Mutant | -10/Materials Mutant | -10/Subcaves Mutant | -9/Scraptown Scrapper | -6/Factory Resources | -11 -10 -10 -9 -6 ----------- Run | Yrd Mat Sub Scr Fac Matter Collected 1912 | 227 410 530 20 725 Remotely . | . . . . . Salvage Created 2144 | 19 686 276 304 859 Parts 116 | 3 46 19 13 35 Haulers Intercepted 1 | . 1 . . . Recyclers Shooed 3 | . . . . 3 Parts Field Recycled . | . . . . . Retrieved Matter . | . . . . . Parts Self-Destructed 10 | . . 10 . . Prevented . | . . . . . Kills | -11 -10 -10 -9 -6 ------- Run | Yrd Mat Sub Scr Fac Combat Hostiles Destroyed 32 | . 13 8 . 11 Guns 32 | . 13 8 . 11 Classes Destroyed 12 | 1 6 2 . 3 Worker 1 | . . . . 1 Builder 2 | . 2 . . . Tunneler 1 | 1 . . . . Hauler 1 | . 1 . . . Recycler 3 | . 2 . . 1 Watcher 1 | . 1 . . . Swarmer 7 | . 3 4 . . Grunt 17 | . 10 . . 7 Sentry 1 | . . . . 1 Programmer 2 | . . . . 2 Cobbler 1 | . . 1 . . Subdweller 11 | . . 4 6 1 Best Kill Streak 5 | 1 5 4 . 3 Combat Bots Only 5 | . 5 4 . 3 Max Kills in Single Turn 1 | 1 1 1 1 1 Gunslinging . | . . . . . Exploded . | . . . . . Melee . | . . . . . Uniques/NPCs Destroyed . | . . . . . Combat | -11 -10 -10 -9 -6 -------- Run | Yrd Mat Sub Scr Fac Hostile Shots Fired 344 | . 64 59 . 221 Missed 88 | . 15 12 . 61 Hits 256 | . 49 47 . 160 Projectile 256 | . 49 47 . 160 Critical Strikes 7 | . . . . 7 Damage Taken 3734 | . 566 904 . 2264 Core 296 | . 39 76 . 181 Absorbed by Shields . | . . . . . Regen/Repaired (Parts) 131 | . . . . 131 Core Remaining (%) 77 | 100 . . 54 . Volleys Fired 170 | 2 72 26 . 70 Largest 2 | 2 2 2 . 2 Hottest 152 | 60 60 46 . 152 Shots Fired 327 | 4 145 52 . 126 Gun 327 | 4 145 52 . 126 Cannon . | . . . . . Launcher . | . . . . . Special . | . . . . . Kinetic 307 | 2 135 51 . 119 Thermal 19 | 2 10 . . 7 Explosive . | . . . . . Electromagnetic 1 | . . 1 . . Robot Hit Streak 12 | 3 12 9 . 11 Robot Miss Streak 4 | 1 4 3 . 4 Penetration Max 2 | . . . . 2 Secondary Targets 3 | . . 2 . 1 Max Gunslinging Chain 1 | . . 1 . 1 Shots Hit Robots 212 | 3 85 38 15 71 Core Hits 85 | 1 33 14 6 31 Critical Kills 6 | . . . . 6 Critical Parts Destroyed 9 | . . . . 9 Critical Strikes 15 | . . . . 15 Destroy 15 | . . . . 15 Melee Attacks 32 | . . 15 15 2 Impact 2 | . . . . 2 Slashing 30 | . . 15 15 . Piercing . | . . . . . Sneak Attacks 18 | . . 2 15 1 Combat Hostiles . | . . . . . Follow-up Attacks . | . . . . . Damage Inflicted 4283 | 30 1088 667 615 1883 Guns 3462 | 30 1082 566 . 1784 Cannons . | . . . . . Explosions . | . . . . . Melee 783 | . . 101 615 67 Ramming 38 | . 6 . . 32 Kinetic 3251 | 18 1005 549 . 1679 Thermal 194 | 12 77 . . 105 Explosive . | . . . . . Electromagnetic 17 | . . 17 . . Impact 67 | . . . . 67 Slashing 716 | . . 101 615 . Piercing . | . . . . . Highest Corruption 12 | . 2 2 . 12 Average Corruption 4 | . 2 2 . 11 Corruption Purged . | . . . . . Corruption Blocked . | . . . . . Effects 49 | . 4 19 . 26 Message Errors 11 | . . 3 . 8 Matter Fused 17 | . 2 7 . 8 Heat Flow Errors 2 | . . 1 . 1 Energy Discharges 8 | . 1 2 . 5 Parts Fused 2 | . . 1 . 1 Data Loss (minor) 2 | . . . . 2 Data Loss (major) 2 | . . 2 . . Misfires 3 | . 1 2 . . Alerts 1 | . . 1 . . Weapon Failures 1 | . . . . 1 Overload Shots . | . . . . . Overflow Damage 27 | . . . . 27 Projectiles . | . . . . . Explosions . | . . . . . Melee 27 | . . . . 27 Knockbacks 2 | . . . . 2 Impact 2 | . . . . 2 Kinetic . | . . . . . Secondary . | . . . . . Self-Inflicted Damage 28 | . . . . 28 Shots 1 | . . . . 1 Rammed 2 | . 2 . . . Targets Rammed 7 | . 2 . . 5 Kicked 5 | . . . . 5 Crushed . | . . . . . Highest Temperature 408 | 20 113 225 . 408 Average Temperature 74 | 12 23 125 . 113 Received Heat Transfer 1062 | . 249 120 . 693 Effects 2 | . . . . 2 Energy Bleed 1 | . . . . 1 Matter Decay 1 | . . . . 1 Siege Activations . | . . . . . Martial Activations . | . . . . . Shielding Activations . | . . . . . Robots Disrupted . | . . . . . Combat Hostiles . | . . . . . Robots Corrupted . | . . . . . Combat Hostiles . | . . . . . Parts Fried . | . . . . . Impact Corruptions 1 | . . . . 1 Robots Melted . | . . . . . Combat Hostiles . | . . . . . Parts Melted 2 | . . . . 2 Heat Transferred 350 | 25 175 . . 150 Parts Sabotaged . | . . . . . Parts Stolen . | . . . . . Parts Stripped . | . . . . . Power Chain Reactions . | . . . . . Alert | -11 -10 -10 -9 -6 ------- Run | Yrd Mat Sub Scr Fac Maximum Alert Level . | . . . . . Low Security (%) 100 | 100 100 . . 100 Level 1 . | . . . . . Level 2 . | . . . . . Level 3 . | . . . . . Level 4 . | . . . . . Level 5 . | . . . . . High Security . | . . . . . Max Security . | . . . . . Peak Influence 128 | 5 128 . . 80 Initial 3 | . 3 . . . Average 36 | . 49 . . 23 Influence Increases 1092 | 5 435 185 . 467 Destroy 0b10 Robot/C 600 | . 260 100 . 240 Destroy 0b10 Robot/NC 45 | 5 30 . . 10 Destroy Leader 124 | . 84 . . 40 Allied During Kill 21 | . . 10 . 11 Successful Hack 35 | . 11 . . 24 Select Force Hacks 30 | . 30 . . . Disable Machine 45 | . 15 . . 30 Destroy Structure 42 | . 5 . . 37 Lose Combat Pursuer 150 | . . 75 . 75 Influence Decreases 1055 | . 435 190 . 430 Entered New Map 5 | . 2 3 . . Time Decay 844 | . 423 167 . 254 Lost Part 140 | . 10 20 . 110 Lost Ally 66 | . . . . 66 Squads Dispatched 9 | . 4 . . 5 Investigation 5 | . 3 . . 2 Extermination 1 | . . . . 1 Reinforcement 3 | . 1 . . 2 Assault . | . . . . . Garrison . | . . . . . Intercept . | . . . . . Searches Triggered . | . . . . . Construction Impeded 1 | . . . . 1 Haulers Reinforced 1 | . . . . 1 Active Scanning Responses . | . . . . . Cargo Convoy Interrupts . | . . . . . Stealth | -11 -10 -10 -9 -6 --------- Run | Yrd Mat Sub Scr Fac Distress Signals 2 | . 2 . . . Communications Jammed . | . . . . . Distress Signals . | . . . . . Times Spotted 58 | . 20 18 . 20 Peak Tracking Total 7 | . 6 6 . 7 Tactical Retreats 6 | . . 2 . 4 Traps | -11 -10 -10 -9 -6 ------- Run | Yrd Mat Sub Scr Fac Traps Triggered 6 | . 2 1 . 3 Indirectly . | . . . . . Trap Hack Attempts . | . . . . . Triggered . | . . . . . Disarmed . | . . . . . Reprogrammed . | . . . . . Reused . | . . . . . Traps Extracted . | . . . . . Installed . | . . . . . Triggered . | . . . . . Machines | -11 -10 -10 -9 -6 ---------- Run | Yrd Mat Sub Scr Fac Machines Disabled 4 | . 1 1 . 2 Max in Single Turn 1 | . 1 1 . 1 Garrison Access 1 | . . . . 1 Machines Repaired . | . . . . . Machines Dismantled . | . . . . . Machines Sabotaged . | . . . . . Overloaded Fab Kills . | . . . . . Hacking | -11 -10 -10 -9 -6 --------- Run | Yrd Mat Sub Scr Fac Machines Accessed 18 | . 9 2 2 5 Terminals 7 | . 7 . . . Fabricators 2 | . . . . 2 Repair Stations 1 | . . . . 1 Recycling Units 3 | . 2 . . 1 Scanalyzers . | . . . . . Garrison Access 1 | . . . . 1 Total Hacks 41 | . 20 6 6 9 Successful 31 | . 12 6 6 7 Failed 10 | . 8 . . 2 Catastrophic 2 | . 1 . . 1 Database Lockouts . | . . . . . Manual 20 | . 17 . . 3 Terminals 15 | . 15 . . . Fabricators 3 | . . . . 3 Repair Stations 2 | . . . . 2 Recycling Units 8 | . 5 . . 3 Scanalyzers . | . . . . . Garrison Access 1 | . . . . 1 Terminal Hacks 13 | . 1 6 6 . Record 11 | . . 5 6 . Terminal Index 1 | . 1 . . . Proto ID Catalog 1 | . . 1 . . Fabricator Hacks 2 | . . . . 2 Network Status 1 | . . . . 1 Build 1 | . . . . 1 Repair Station Hacks 2 | . . . . 2 Scan Component 1 | . . . . 1 Repair 1 | . . . . 1 Recycling Unit Hacks 2 | . 1 . . 1 Report Inventory 2 | . 1 . . 1 Scanalyzer . | . . . . . Garrison Access Hacks 1 | . . . . 1 Seal Access 1 | . . . . 1 Unauthorized Hacks 10 | . 9 . . 1 Terminals 8 | . 8 . . . Botnet 2 | . 2 . . . Skim 6 | . 6 . . . Fabricators 1 | . . . . 1 Report 1 | . . . . 1 Repair Stations . | . . . . . Recycling Units 1 | . 1 . . . Tunnel 1 | . 1 . . . Scanalyzers . | . . . . . Garrison Access . | . . . . . Data Cores Recovered . | . . . . . Used . | . . . . . Hacking Detections 7 | . 5 . . 2 Full Trace Events 4 | . 3 . . 1 Feedback Events . | . . . . . Feedback Blocked . | . . . . . Robot Schematics Acquired . | . . . . . Robots Built 1 | . . . . 1 Authchips . | . . . . . Time 27 | . . . . 27 Total Robot Build Rating 1 | . . . . 1 Part Schematics Acquired . | . . . . . Parts Built . | . . . . . Authchips . | . . . . . Time . | . . . . . Total Part Build Rating . | . . . . . Parts Repaired 1 | . . . . 1 Time 13 | . . . . 13 Parts Recycled . | . . . . . Recycled Matter . | . . . . . Retrieved Matter . | . . . . . Retrieved Components . | . . . . . Parts Scanalyzed . | . . . . . Part Schematics Acquired . | . . . . . Parts Damaged . | . . . . . Bothacking | -11 -10 -10 -9 -6 ------------ Run | Yrd Mat Sub Scr Fac Used RIF Installer . | . . . . . Robots Hacked . | . . . . . Non-combat . | . . . . . Combat . | . . . . . Robot Hacks Applied . | . . . . . Relay Couplers Released 1 | . . . . 1 Machine Destruction 1 | . . . . 1 Fabnet Peak Effective % . | . . . . . Robots Rewired . | . . . . . Allies Hacked . | . . . . . Hacks Repelled . | . . . . . Allies | -11 -10 -10 -9 -6 -------- Run | Yrd Mat Sub Scr Fac Total Allies 14 | . . 13 . 1 Largest Group 12 | . . 12 12 6 Highest-Rated Group 228 | . . 228 228 108 Highest-Rated Ally 19 | . . 19 19 19 Total Orders . | . . . . . Ally Attacks 51 | . . 16 . 35 Total Damage 656 | . . 205 . 451 Kills 3 | . . 1 . 2 Allies Corrupted . | . . . . . Allies Melted . | . . . . . Intel | -11 -10 -10 -9 -6 ------- Run | Yrd Mat Sub Scr Fac Active Infowar (turns) 1269 | 10 142 215 . 902 Sensors 902 | . . . . 902 Terrain 152 | 10 142 . . . Structural 215 | . . 215 . . Robot Analysis Total . | . . . . . Derelict Logs Recovered 4 | . . 1 3 . Drone Launches . | . . . . . Drone Recoveries . | . . . . . Exploration | -11 -10 -10 -9 -6 ------------- Run | Yrd Mat Sub Scr Fac Turns Passed 7166 | 99 1331 1892 2811 1033 Spaces Moved 5164 | 54 564 1521 2418 607 Core 6 | 6 . . . . Treads 662 | 48 564 50 . . Legs 583 | . . . . 583 Wheels 3913 | . . 1471 2418 24 Hover . | . . . . . Flight . | . . . . . Fastest Speed 50 | 50 160 100 100 102 Average Speed 114 | 147 160 111 106 109 Slowest Speed 183 | 160 160 160 115 183 Overloaded Moves . | . . . . . Propulsion Burnouts . | . . . . . Robots Hopped . | . . . . . Potential Cave-ins . | . . . . . Cave-ins Triggered . | . . . . . Exploration Rate (%) 59 | 4 99 91 89 16 Regions Visited 4 Branch Regions 2 Pre-discovered Areas 6 | . 2 2 2 . Known Exits Taken . | . . . . . Unknown Exits Taken 4 | 1 1 1 1 . Scrap Searched 22 | . . 15 7 . Spaces Dug 9 | . . . . 9 Terrain Destroyed 42 | . . . . 42 Melee . | . . . . . Projectile 40 | . . . . 40 AOE . | . . . . . Terrain Rammed . | . . . . . Walls Destroyed . | . . . . . Machines Disabled . | . . . . . Actions | -11 -10 -10 -9 -6 --------- Run | Yrd Mat Sub Scr Fac Total 6095 | 66 866 1654 2633 876 Wait 486 | . 213 53 95 125 Move 5160 | 53 563 1520 2417 607 Hop . | . . . . . Pick Up 107 | 4 6 15 54 28 Fast Attach 20 | 7 . 1 4 8 Attach 24 | . 1 6 2 15 Detach 11 | . . . 3 8 Swap 23 | . 7 10 . 6 Drop 55 | . 2 8 43 2 Fire 170 | 2 72 26 . 70 Melee 32 | . . 15 15 2 Ram . | . . . . . Kick 5 | . . . . 5 Crush 2 | . 2 . . . Escape Stasis . | . . . . . Rewire . | . . . . . Trap . | . . . . . Miscellaneous . | . . . . . Route ------- -11/Scrapyard -10/Materials (discovered 6 exits: *Mat x3 / [*Min x2] / *Sub) -10/Subcaves (discovered 4 exits: [*Mat x2] / Rec / *Scr) -9/Scraptown (discovered 2 exits: *Fac x2) -6/Factory (discovered 1 exit: *Fac) History --------- Turn | Location | Event 11 | -11/Scrapyard | Discovered new exit (range 16) 100 | -11/Scrapyard | Entered Materials 296 | -10/Materials | Discovered new exit (range 14) 302 | -10/Materials | Build established: Mutant 497 | -10/Materials | Discovered new exit (range 14) 727 | -10/Materials | Discovered new exit (range 16) 780 | -10/Materials | Discovered new exit (range 8) 1005 | -10/Materials | Discovered new exit (range 10) 1135 | -10/Materials | Learned Storage security intel 1196 | -10/Materials | Loaded intel: 1 repair station location 1212 | -10/Materials | Discovered new exit (range 7) 1246 | -10/Materials | Learned location of Mines (-10) 1314 | -10/Materials | Identified exit to Materials 1367 | -10/Materials | Learned 8 Materials zone layouts 1406 | -10/Materials | Learned 2 Storage zone layouts 1431 | -10/Materials | Entered Subcaves 1432 | -10/Subcaves | Approached by a straggling Scientist 1587 | -10/Subcaves | Lost 4 parts (2n1u1w) 1633 | -10/Subcaves | A swath of the cavern ceiling suddenly collapsed 1895 | -10/Subcaves | Visited 4L-MR0's lab 1906 | -10/Subcaves | Found Tower Shield 1963 | -10/Subcaves | Visited triangular shrine 1971 | -10/Subcaves | Found Prototype Device 1972 | -10/Subcaves | Identified V3-11A's Pendant 1977 | -10/Subcaves | Befriended Subdweller 2161 | -10/Subcaves | Scientist uncovered a shortcut to Scraptown 2165 | -10/Subcaves | Discovered new exit (range 8) 2272 | -10/Subcaves | Befriended Subdweller 2367 | -10/Subcaves | Discovered new exit (range 7) 2377 | -10/Subcaves | Befriended Subdweller 2392 | -10/Subcaves | Befriended Subdweller 2452 | -10/Subcaves | Befriended Subdweller 2457 | -10/Subcaves | Befriended Subdweller 2470 | -10/Subcaves | Ambushed by angry Subdweller bent on revenge 2472 | -10/Subcaves | Befriended Subdweller 2492 | -10/Subcaves | Befriended Subdweller 2497 | -10/Subcaves | Befriended Subdweller 2632 | -10/Subcaves | Befriended Subdweller 2676 | -10/Subcaves | Shifting Twisted Machinery released Sub. Beam Cannon 2690 | -10/Subcaves | Shifting Twisted Machinery released Flamer 2840 | -10/Subcaves | Shifting Twisted Machinery released Flamer 2846 | -10/Subcaves | Shifting Twisted Machinery released Flamer 2847 | -10/Subcaves | Befriended Subdweller 2852 | -10/Subcaves | Befriended Subdweller 2889 | -10/Subcaves | Learned location of Zion (-7) 2889 | -10/Subcaves | Met a Zionite searching for "candidates" 2958 | -10/Subcaves | Learned Materials stockpile data 3027 | -10/Subcaves | Befriended Subdweller 3123 | -10/Subcaves | Visited Clippyterm 3126 | -10/Subcaves | Identified exit to Recycling 3126 | -10/Subcaves | Learned location of Deep Caves (-7) 3323 | -10/Subcaves | Entered Scraptown 3323 | -9/Scraptown | Accompanied by 12 allies 3323 | -9/Scraptown | System corruption cleaned by C-Scrubber 3436 | -9/Scraptown | Scanned Subdweller tech in exchange for log data 3443 | -9/Scraptown | Learned location of Armory (-3) 3444 | -9/Scraptown | Learned location of Testing (-2) 3445 | -9/Scraptown | Learned Factory stockpile data 3476 | -9/Scraptown | Discovered new exit (range 11) 3591 | -9/Scraptown | Heard Great Nut preacher, LISTEN AND RECITE! 3596 | -9/Scraptown | Visited UFD Registry 3596 | -9/Scraptown | Registered with UFD as "Rustflow" 3698 | -9/Scraptown | Delivered V3-11A's Pendant to T0-NE2 in exchange for information 3964 | -9/Scraptown | Guru changed UFD alias to "Zerocoil" 4034 | -9/Scraptown | Visited Spacefarers 4062 | -9/Scraptown | Visited Bundlers 4293 | -9/Scraptown | Visited Assassins FH 4366 | -9/Scraptown | Visited Red Mages 4412 | -9/Scraptown | Visited TADAMA 4454 | -9/Scraptown | Visited CR-KLE's Repair Center 4473 | -9/Scraptown | Visited Fellowship of the Rings 4862 | -9/Scraptown | Visited Curators Association 4886 | -9/Scraptown | Visited Modified Component R&D 5031 | -9/Scraptown | Visited Scrapoid Pod Storage 5036 | -9/Scraptown | Found Scrapoid Pod 5067 | -9/Scraptown | Visited Infowarlord's Domain 5086 | -9/Scraptown | Visited Derelict Rescue Squad 5094 | -9/Scraptown | Found DRS Beacon 5115 | -9/Scraptown | Visited Scrapoid Research Area 5290 | -9/Scraptown | Delivered Scrap Shield to a Scientist 5292 | -9/Scraptown | Murdered 6 allies 5342 | -9/Scraptown | Visited Observation Area 5377 | -9/Scraptown | Visited Research Penetration Think Tank 5498 | -9/Scraptown | Visited Chapter 10 5597 | -9/Scraptown | Found Scrap Suit 5998 | -9/Scraptown | Found Exp. Sensor Array 6052 | -9/Scraptown | Met Optimus 6052 | -9/Scraptown | Accepted into 0bPrime 6116 | -9/Scraptown | Discovered new exit (range 5) 6134 | -9/Scraptown | Entered Factory 6134 | -6/Factory | Accompanied by 6 allies 6134 | -6/Factory | Evolved 8 slots: Power x1, Propulsion x2, Utility x5 6309 | -6/Factory | Lost 5 allies 6467 | -6/Factory | Build established: Scrapper 6509 | -6/Factory | System corruption reached 10% 6582 | -6/Factory | Fabricated A-02 Transporter (x1) 6588 | -6/Factory | P-60 Hacker assimilated allied AN-X7T(R) 6752 | -6/Factory | Discovered new exit (range 6) 6790 | -6/Factory | Identified exit to Factory 6909 | -6/Factory | Repaired Lgt. Humpback 7167 | -6/Factory | Self-destructed Last Messages --------------- 07153_ Penetrated by Slug. 07153_ Imp. Medium Armor Plating destroyed. 07153_ U-05 Engineer lays Concrete. 07156_ R-10 Processor collects Structural Scanner. 07156_ Penetrated by Slug. 07156_ U-05 Engineer destroyed. 07156_ U-05 Engineer lays Concrete. 07157_ U-05 Engineer builds a Wall. 07160_ Destroyed Com. Wheel. 07161_ R-10 Processor collects IFF Parser. 07161_ U-05 Engineer lays Concrete. 07162_ Slug penetrates Wall. 07163_ U-05 Engineer builds a Wall. 07164_ Overheating: Matter decay (-26). 07164_ R-10 Processor collects Com. Wheel. 07164_ Kicked R-10 Processor out of the way. 07164_ R-10 Processor knocked back. 07165_ Penetrated by Slug. 07165_ Scrap Suit destroyed. 07166_ Ovr. Quantum Rifle suddenly begins malfunctioning. Map ----- +----------------------------------------------------+ | ???????????????# #!"Y #???????????? | | ????????????? ##### # """ #???????????? | | ??????????????#### ##+???## # [#???????????? | | ?????????????????# ????? # ########???????????? | | ?????????????????? ???? # #??????????????????? | | ?????????????????? ??? ?# #??????????????????? | | ?????????????????? ?? ??# #??????????????????? | | ???????????????????? ???# #??????????????????? | | ???????????????????? ????# #??????????????????? | | ??????????????????????????# #??????????????????? | | ??????????????????????????# #??????????????????? | | ??????????????????????????# #??????????????????? | | ??????????????????????????# #??????????????????? | | ??????????????????????????# #??????????????????? | | ??????????????????????????# #??????????????????? | | ??????????????????????????# #######????????????? | | ??????????????????????????# ## ???????????? | | ??????????????????????????# "# ????????????? | | ???????????????????"???#### ## ?? ??? #????? | | ???????????????????? ??# + ??? #????? | | ????????????????????? ## # """ ""? #????? | | ?????????????????# ##### ! # """ """ #????? | | ???????????? " =! + """ """ #????? | | ?????????????????#### ##h####### #????? | | ????????????????????#?# ! ## """ #????? | | ????????????????????# #uR@! ;# """ #????? | | ????????????????????#=#] & R R# """ "T" #????? | | ???????????????????#" #!!! ;# " #? | | ???????????????????##?#*% ########+###???????? | | ??????????????????????############## #####???? | | ????????????????# % " #? | | ????????????????/ [ "T | | ????????????????# | | ????????????????? ############## ^ ^ | | ?????????????????#?????????????????###### ^ " | | ????????????????????????????????????????? " | | ?????????????????????????????????????????? " ??? | | ?????????????????????????????????????????????"???? | | ?????????????????????????????????????????????????? | | ?????????????????????????????????????????????????? | | ?????????????????????????????????????????????????? | | ?????????????????????????????????????????????????? | | ?????????????????????????????????????????????????? | | ?????????????????????????????????????????????????? | | ?????????????????????????????????????????????????? | | ?????????????????????????????????????????????????? | | ?????????????????????/???????????????????????????? | | ?????????????????????????????????????????????????? | | ?????????????????????????????????????????????????? | | ?????????????????????????????????????????????????? | +----------------------------------------------------+ Best States ------------- Heat Dissipation 56 Energy Generation 31 Energy Capacity 250 Matter Stores 300 Matter Capacity 300 Sight Range 16 Robot Scan Range 20 Terrain Scan Range 16 Terrain Scan Density 10 Armor Coverage 825 Evasion (%) 55 Targeting Accuracy 5 Target Analysis 5 Recoil Reduction 2 Offensive Hacking 10 Item Schematics ----------------- None Robot Schematics ------------------ None Fabricated ------------ A-02 Transporter | x1 | -6/Factory | Preloaded Repaired ---------- Lgt. Humpback | 12% | -6/Factory Alien Tech Used ----------------- None Achievements -------------- None Challenges ------------ None Game ------ Seed PoweredDisruptionRegenerator Manual? 0 Play Time 00:54:38 Cumulative 139.1 hours Start 2025.07.06 @ 18:27:39 End 2025.07.06 @ 19:28:38 Sessions 1 Manual Loads 0 Difficulty Rogue Special Mode None Game No. 144 Rogue 144 Adventurer 0 Explorer 0 Win Type - Total 3 Types 1/0/0/1/0/0/0/0/0/1 Lore% 63 Gallery% 59 Achievement% 52 Wizard Run 0 Options --------- Layout 1 ASCII 0 Keyboard 1 Movement Numpad Keybinds 0 Fullscreen 1 Font 32/SmallcapsGlow Map View 77x35 Zoom Use 0% Tactical HUD 1 Map Filters NONE Filters NONE Steam 1 RUN: 1b68c819-cab5-4cf9-8e13-9cb599f00991